bitfinex-derivatives/quotes_BTCF0:USTF0_20251103
["timestamp","ask_amount","ask_price","bid_price","bid_amount"]
[1762180529854,0.68364,107500.0,107490.0,0.10063718]
[1762180530054,0.68364,107500.0,107490.0,0.05785718]
[1762180530662,0.68364,107500.0,107490.0,0.07894718]
[1762180531063,0.68364,107500.0,107490.0,0.10063718]
[1762180531362,0.68364,107500.0,107490.0,0.07894718]
[1762180531657,0.77047985,107500.0,107490.0,0.07612373]
[1762180532462,0.77047985,107500.0,107490.0,0.07611365]
[1762180532648,0.77047985,107500.0,107490.0,0.06285718]
[1762180532854,0.44363985,107500.0,107490.0,0.10563718]
[1762180533050,0.77031985,107500.0,107490.0,0.10563718]
[1762180533355,0.77027985,107500.0,107490.0,0.10563718]
[1762180533554,0.77027985,107500.0,107490.0,0.19868598]
[1762180533555,0.3678,107500.0,107490.0,0.19868598]
[1762180534152,0.011,107500.0,107490.0,0.19868598]
[1762180534360,0.3718,107500.0,107490.0,0.19868598]
[1762180535075,0.011,107500.0,107490.0,0.19868598]
[1762180535256,0.3718,107500.0,107490.0,0.43223718]
[1762180535455,0.011,107500.0,107490.0,0.52528558]
[1762180535852,0.3718,107500.0,107490.0,0.43223718]
[1762180536056,0.4648397,107500.0,107490.0,0.43223718]
[1762180536465,0.4648397,107500.0,107490.0,0.52528558]
[1762180536767,0.1040388,107500.0,107490.0,0.52528558]
[1762180537367,0.1040393,107500.0,107490.0,0.43223718]
[1762180537568,0.4648393,107500.0,107490.0,0.06285718]
[1762180537755,0.4648393,107500.0,107490.0,0.10563718]
[1762180537957,0.66894821,107500.0,107490.0,0.10563718]
[1762180538160,0.66894821,107500.0,107490.0,0.06285718]
[1762180538358,0.0930485,107490.0,107480.0,0.0828082]
[1762180538559,0.4538485,107490.0,107480.0,0.11717746]
[1762180538860,0.7805685,107490.0,107480.0,0.1255882]
[1762180539166,0.7805685,107490.0,107480.0,0.13886211]
[1762180539665,0.7805685,107490.0,107480.0,0.1255882]
[1762180539865,0.7815685,107490.0,107480.0,0.1285882]
[1762180540066,0.7815685,107490.0,107480.0,0.2216454]
[1762180540262,0.4598485,107490.0,107480.0,0.2246454]
[1762180540660,0.006,107490.0,107480.0,0.2246454]
[1762180540866,0.006,107490.0,107480.0,0.5512854]
[1762180541462,0.006,107490.0,107480.0,0.9120854]
[1762180542171,0.008,107490.0,107480.0,0.9100854]
[1762180542556,0.008,107490.0,107480.0,0.8170282]
[1762180542870,0.3688,107490.0,107480.0,0.4562282]
[1762180543067,0.3688,107490.0,107480.0,0.1295882]
[1762180545355,0.390961,107490.0,107480.0,0.1295882]
[1762180545762,0.4840089,107490.0,107480.0,0.1295882]
[1762180546673,0.4840089,107490.0,107480.0,0.10015979]
[1762180546865,0.74148265,107490.0,107460.0,0.01321]
[1762180547062,0.92570891,107470.0,107460.0,0.01321]
[1762180547262,0.97274366,107470.0,107460.0,0.01321]
[1762180547470,1.20138366,107470.0,107460.0,0.01321]
[1762180547765,1.20138366,107470.0,107450.0,0.01603466]
[1762180547964,1.20138366,107470.0,107450.0,0.05975466]
[1762180547965,0.91646266,107460.0,107450.0,0.05975466]
[1762180548170,0.93862366,107460.0,107450.0,0.01603466]
[1762180548373,0.73451475,107460.0,107450.0,0.05975466]
[1762180548664,0.55302991,107460.0,107450.0,0.15283776]
[1762180548871,0.382961,107460.0,107450.0,0.15283776]
[1762180549267,0.39232578,107460.0,107450.0,0.05975466]
[1762180549468,0.03152578,107460.0,107450.0,0.15283776]
[1762180549775,0.022161,107460.0,107450.0,0.51363776]
[1762180549962,0.38940742,107470.0,107460.0,0.1510041]
[1762180550163,0.39856489,107470.0,107460.0,0.1510041]
[1762180550363,0.03260742,107470.0,107460.0,0.1510041]
[1762180550769,0.03160742,107470.0,107460.0,0.1500041]
[1762180551270,0.56490891,107480.0,107470.0,0.1367854]
[1762180551565,0.39286913,107480.0,107470.0,0.1367854]
[1762180551772,0.39286913,107480.0,107470.0,0.04372]
[1762180551976,0.39286913,107480.0,107470.0,0.1367852]
[1762180552173,0.39286913,107480.0,107470.0,0.04372]
[1762180552472,0.46904329,107480.0,107470.0,0.04372]
[1762180553865,0.10824329,107480.0,107470.0,0.1367852]
[1762180554160,0.02661056,107480.0,107470.0,0.1367852]
[1762180554361,0.02661056,107480.0,107470.0,0.8241852]
[1762180554570,0.3608,107500.0,107490.0,0.02123]
[1762180554774,0.36997559,107500.0,107490.0,0.37064]
[1762180554966,0.38567375,107510.0,107500.0,0.1499691]
[1762180555171,0.3608,107510.0,107500.0,0.1499691]
[1762180555371,0.4538304,107510.0,107500.0,0.05693]
[1762180555866,0.4538304,107510.0,107500.0,0.1499691]
[1762180555867,0.4630097,107510.0,107500.0,0.1499691]
[1762180556167,0.4868304,107510.0,107500.0,0.05793]
[1762180556667,0.4868304,107510.0,107500.0,0.1509691]
[1762180556872,0.4868304,107510.0,107500.0,0.05793]
[1762180557070,0.4938304,107510.0,107500.0,0.05893]
[1762180557271,0.50332841,107510.0,107500.0,0.05893]
[1762180557465,0.1330304,107510.0,107500.0,0.1519691]
[1762180557973,0.04,107510.0,107500.0,0.1519691]
[1762180558177,0.04,107510.0,107500.0,0.5127691]
[1762180558474,0.04,107510.0,107500.0,1.0720491]
[1762180558973,0.007,107510.0,107500.0,1.1992891]
[1762180559274,0.01899578,107510.0,107500.0,1.63795801]
[1762180560368,0.003,107530.0,107520.0,0.05693]
[1762180560565,0.003,107530.0,107520.0,0.8375118]
[1762180560770,0.003,107530.0,107520.0,1.4308318]
[1762180560972,0.01999,107560.0,107550.0,0.136716]
[1762180561169,0.03396,107560.0,107550.0,0.463556]
[1762180561372,0.4877473,107560.0,107550.0,0.37056]
[1762180562168,0.1269473,107560.0,107550.0,0.4635561]
[1762180562468,0.00602,107560.0,107550.0,0.4635561]
[1762180562670,0.00602,107560.0,107550.0,0.8243561]
[1762180562964,0.00602,107560.0,107550.0,1.0567961]
[1762180563165,0.003,107570.0,107560.0,0.1499173]
[1762180563466,0.003,107570.0,107560.0,0.7431573]
[1762180564067,0.003,107570.0,107560.0,1.0700773]
[1762180564272,0.4537593,107600.0,107590.0,0.04372]
[1762180564476,0.3638,107610.0,107600.0,0.1498831]
[1762180564665,0.003,107610.0,107600.0,0.1498831]
[1762180565265,0.003,107610.0,107600.0,0.05693]
[1762180565266,0.456744,107610.0,107600.0,0.05693]
[1762180565966,0.137204,107610.0,107600.0,0.38377]
[1762180566184,0.003,107610.0,107600.0,0.8375231]
[1762180566370,0.003,107610.0,107600.0,1.0698431]
[1762180566576,0.003,107610.0,107600.0,0.8375231]
[1762180566980,0.021,107610.0,107600.0,0.8415231]
[1762180567384,0.021,107610.0,107600.0,0.5146831]
[1762180567582,0.1139445,107610.0,107600.0,0.74845]
[1762180568079,0.5160045,107610.0,107600.0,0.38861]
[1762180568386,0.4757445,107610.0,107600.0,0.38861]
[1762180568681,0.4963745,107610.0,107600.0,0.38861]
[1762180568986,0.5170045,107610.0,107600.0,0.38861]
[1762180569567,0.72111341,107610.0,107600.0,0.005]
[1762180569972,0.1342209,107590.0,107580.0,0.38357]
[1762180570174,1.05992981,107590.0,107580.0,0.38357]
[1762180571374,0.69912981,107590.0,107580.0,0.38357]
[1762180571580,1.05992981,107590.0,107580.0,0.38357]
[1762180572085,0.8558209,107590.0,107580.0,0.38357]
[1762180572285,0.4950208,107590.0,107580.0,0.38357]
[1762180572486,0.3608,107590.0,107580.0,0.4765395]
[1762180572684,0.4537604,107590.0,107580.0,0.38357]
[1762180572888,0.5110204,107590.0,107580.0,0.06393]
[1762180573080,0.5110204,107590.0,107580.0,0.007]
[1762180573379,0.8718204,107590.0,107580.0,0.007]
[1762180573777,0.8718204,107590.0,107580.0,0.06393]
[1762180574180,0.8798204,107590.0,107580.0,0.008]
[1762180574374,1.1121804,107590.0,107580.0,0.008]
[1762180574577,0.8798204,107590.0,107580.0,0.008]
[1762180574889,1.2063404,107590.0,107580.0,0.06525]
[1762180575376,1.2063404,107590.0,107580.0,0.008]
[1762180576180,1.2063404,107590.0,107580.0,0.06705]
[1762180576374,1.2053404,107590.0,107580.0,0.06305]
[1762180576578,1.2053404,107590.0,107580.0,0.06405]
[1762180576774,1.2053404,107590.0,107580.0,0.04198]
[1762180577081,0.1159605,107590.0,107580.0,0.1570192]
[1762180577380,0.1159605,107590.0,107580.0,0.4834592]
[1762180577586,0.023,107590.0,107580.0,0.8442592]
[1762180577782,0.023,107590.0,107580.0,1.0766192]
[1762180578584,0.023,107590.0,107580.0,1.0766193]
[1762180578781,0.1159607,107590.0,107580.0,0.06405]
[1762180578982,0.5180207,107590.0,107580.0,0.06405]
[1762180579183,0.5180207,107590.0,107580.0,0.04198]
[1762180579391,0.5180207,107590.0,107580.0,0.005]
[1762180580387,0.02063,107570.0,107560.0,0.05831]
[1762180580587,0.38143,107570.0,107560.0,0.05831]
[1762180580788,0.3608,107570.0,107560.0,0.1512969]
[1762180581188,0.023,107590.0,107580.0,0.1520191]
[1762180581587,0.023,107590.0,107580.0,0.5128191]
[1762180581987,0.018,107590.0,107580.0,0.7451791]
[1762180582389,0.003,107610.0,107600.0,0.35611051]
[1762180582693,0.003,107610.0,107600.0,1.40455051]
[1762180582994,0.003,107610.0,107600.0,1.63687051]
[1762180584194,0.022,107610.0,107600.0,1.64087051]
[1762180584394,0.022,107610.0,107600.0,1.57176249]
[1762180584588,0.022,107610.0,107600.0,0.88412279]
[1762180584794,0.022,107610.0,107600.0,1.0760419]
[1762180585093,0.022,107610.0,107600.0,1.4368419]
[1762180585291,0.022,107610.0,107600.0,1.57184279]
[1762180585490,0.022,107610.0,107600.0,1.57484279]
[1762180585491,0.023,107610.0,107600.0,1.57484279]
[1762180585689,0.023,107610.0,107600.0,0.52632279]
[1762180585899,0.40558,107640.0,107630.0,0.0451]
[1762180586093,0.40558,107640.0,107630.0,0.37182]
[1762180587693,0.41358,107640.0,107630.0,0.37282]
[1762180587895,0.5065017,107640.0,107630.0,0.37282]
[1762180588284,0.65414259,107640.0,107630.0,0.001]
[1762180588688,0.67619791,107640.0,107630.0,0.001]
[1762180589500,0.0445,107600.0,107590.0,0.40586]
[1762180589792,0.4053,107610.0,107600.0,0.04506]
[1762180590096,0.4053,107610.0,107600.0,0.05851]
[1762180590994,0.0445,107590.0,107580.0,0.05901]
[1762180591188,0.90110089,107590.0,107580.0,0.05901]
[1762180591388,0.90110089,107590.0,107580.0,0.38553]
[1762180591692,0.88110089,107590.0,107580.0,0.38553]
[1762180591896,0.87510089,107590.0,107580.0,0.05901]
[1762180592090,0.89273089,107590.0,107580.0,0.03629]
[1762180592294,0.03526,107580.0,107570.0,0.37158]
[1762180592495,0.53106089,107580.0,107570.0,0.37158]
[1762180592689,0.01063,107580.0,107570.0,0.4645581]
[1762180592885,0.3608,107580.0,107570.0,0.37158]
[1762180593297,0.3608,107580.0,107570.0,0.4645578]
[1762180593489,0.3608,107580.0,107570.0,0.37158]
[1762180593892,0.3608,107580.0,107570.0,0.04506]
[1762180594087,0.51706089,107580.0,107570.0,0.04506]
[1762180594293,0.02126,107570.0,107560.0,0.38471]
[1762180594495,0.49580089,107580.0,107570.0,0.04506]
[1762180594496,0.3608,107580.0,107570.0,0.04506]
[1762180594698,0.3768,107580.0,107570.0,0.04806]
[1762180594894,0.018,107580.0,107570.0,0.1420383]
[1762180595104,0.018,107580.0,107570.0,0.5028383]
[1762180595502,0.002,107580.0,107570.0,0.4998383]
[1762180595693,0.3628,107580.0,107570.0,0.04606]
[1762180595894,0.3608,107580.0,107570.0,0.04506]
[1762180596086,0.37143,107580.0,107570.0,0.1380378]
[1762180596292,0.51706089,107590.0,107580.0,0.05851]
[1762180596492,0.51706089,107590.0,107580.0,0.38495]
[1762180596895,0.61002139,107590.0,107580.0,0.38495]
[1762180597196,0.61002139,107590.0,107580.0,0.32644]
[1762180597794,0.63208892,107590.0,107580.0,0.32644]
[1762180597997,0.61002139,107590.0,107580.0,0.36223]
[1762180598304,0.61002139,107590.0,107580.0,0.38495]
[1762180598606,0.4537605,107590.0,107580.0,0.4779192]
[1762180598799,0.4537605,107590.0,107580.0,0.38495]
[1762180599100,0.4643876,107600.0,107590.0,0.04506]
[1762180599299,0.4750176,107600.0,107590.0,0.04506]
[1762180599604,0.61001849,107600.0,107590.0,0.04506]
[1762180600102,0.4750176,107600.0,107590.0,0.04506]
[1762180600606,0.61001849,107600.0,107590.0,0.04506]
[1762180600799,0.61601849,107600.0,107590.0,0.001]
[1762180601701,0.66109241,107600.0,107590.0,0.004]
[1762180602399,0.98741241,107600.0,107590.0,0.02634]
[1762180602705,0.98741241,107600.0,107590.0,0.004]
[1762180603303,0.1142383,107570.0,107560.0,0.05827]
[1762180603508,0.4750383,107570.0,107560.0,0.4775369]
[1762180603701,0.0929783,107570.0,107560.0,0.38455]
[1762180604308,0.51706089,107580.0,107570.0,0.04506]
[1762180604902,0.38206,107580.0,107570.0,0.1380384]
[1762180605104,0.3608,107580.0,107570.0,0.1380384]
[1762180605805,0.37143,107580.0,107570.0,0.1380384]
[1762180606106,0.37143,107580.0,107560.0,0.05833]
[1762180606107,0.02126,107570.0,107560.0,0.05833]
[1762180606298,0.51706089,107570.0,107560.0,0.38453]
[1762180607707,0.51706089,107570.0,107560.0,0.4775172]
[1762180607906,0.51706089,107570.0,107560.0,0.4815172]
[1762180607907,0.40706,107570.0,107560.0,0.4815172]
[1762180608107,0.40606,107570.0,107560.0,0.4815172]
[1762180608505,0.40606,107570.0,107560.0,0.06133]
[1762180608808,0.54406089,107570.0,107560.0,0.06233]
[1762180609304,0.54406089,107570.0,107560.0,0.1553169]
[1762180609508,0.028,107570.0,107560.0,0.4814769]
[1762180609899,0.028,107570.0,107560.0,1.0746769]
[1762180610118,0.028,107570.0,107560.0,0.4814769]
[1762180610308,0.028,107570.0,107560.0,0.8422769]
[1762180610603,0.028,107570.0,107560.0,1.0746769]
[1762180610811,0.028,107570.0,107560.0,0.8422769]
[1762180611105,0.1209783,107570.0,107560.0,0.8422769]
[1762180611605,0.4817783,107570.0,107560.0,0.38849]
[1762180611803,0.4817783,107570.0,107560.0,0.4814771]
[1762180612306,0.1209783,107570.0,107560.0,0.4814771]
[1762180612606,0.028,107570.0,107560.0,0.8422771]
[1762180613202,0.028,107570.0,107560.0,1.0746771]
[1762180613504,0.028,107570.0,107560.0,0.7138771]
[1762180613807,0.4817777,107570.0,107560.0,0.7138771]
[1762180614107,0.028,107570.0,107560.0,1.0746771]
[1762180614307,0.3608,107600.0,107590.0,0.04412]
[1762180614603,0.0929442,107610.0,107600.0,0.05715]
[1762180614911,0.63331509,107610.0,107600.0,0.05715]
[1762180616208,0.1375219,107600.0,107590.0,0.04512]
[1762180616404,0.63332279,107600.0,107590.0,0.04412]
[1762180616610,0.63332279,107600.0,107590.0,0.37044]
[1762180616996,0.64632279,107600.0,107590.0,0.37144]
[1762180617201,0.5113219,107600.0,107590.0,0.4644008]
[1762180617398,0.4667519,107600.0,107590.0,0.4644008]
[1762180617619,0.4893619,107600.0,107590.0,0.37144]
[1762180618015,0.4983219,107600.0,107590.0,0.37344]
[1762180618713,0.63332279,107600.0,107590.0,0.37344]
[1762180619102,0.64729279,107600.0,107590.0,0.37444]
[1762180619509,0.64729279,107600.0,107590.0,0.02564]
[1762180619698,0.99557999,107600.0,107590.0,0.004]
[1762180621008,0.1375396,107580.0,107570.0,0.04412]
[1762180621197,0.54037089,107580.0,107570.0,0.1370982]
[1762180621397,0.1375395,107580.0,107570.0,0.18648741]
[1762180621601,0.04457,107580.0,107570.0,0.54728741]
[1762180621902,0.4983378,107590.0,107580.0,0.1501195]
[1762180622103,0.40537,107590.0,107580.0,0.1501195]
[1762180622305,0.4823666,107600.0,107590.0,0.1370804]
[1762180622505,0.4823666,107600.0,107590.0,0.04412]
[1762180622506,0.5043266,107600.0,107590.0,0.04412]
[1762180622704,0.52645299,107600.0,107590.0,0.1370809]
[1762180622915,0.43349639,107600.0,107590.0,0.1370809]
[1762180623113,0.4983217,107600.0,107590.0,0.1370809]
[1762180623308,0.4983217,107600.0,107590.0,0.18647011]
[1762180623718,0.4983217,107600.0,107590.0,0.1370809]
[1762180624016,0.5043217,107600.0,107590.0,0.1380809]
[1762180624401,0.5043217,107600.0,107590.0,0.37124]
[1762180624910,0.3668,107600.0,107590.0,0.4642004]
[1762180625210,0.006,107600.0,107590.0,1.10674961]
[1762180625414,0.006,107600.0,107590.0,1.0573604]
[1762180625912,0.4537263,107630.0,107620.0,0.1500844]
[1762180626100,0.4537263,107630.0,107620.0,0.05715]
[1762180626302,0.4537263,107630.0,107620.0,0.38319]
[1762180626303,0.4982963,107630.0,107620.0,0.38319]
[1762180627706,0.4982963,107630.0,107620.0,0.05715]
[1762180627909,0.63329719,107630.0,107620.0,0.05715]
[1762180628112,0.63629719,107630.0,107620.0,0.05815]
[1762180628515,0.63629719,107630.0,107620.0,0.001]
[1762180628710,0.65838893,107630.0,107620.0,0.001]
[1762180628914,0.66238893,107630.0,107620.0,0.002]
[1762180629312,0.66238893,107630.0,107620.0,0.02364]
[1762180629611,0.66238893,107630.0,107620.0,0.05915]
[1762180630019,0.66238569,107630.0,107620.0,0.002]
[1762180630521,0.64029719,107630.0,107620.0,0.002]
[1762180630823,0.60018719,107630.0,107620.0,0.04512]
[1762180631023,0.44476587,107630.0,107620.0,0.05915]
[1762180631222,0.33375,107630.0,107620.0,0.31704645]
[1762180631411,0.28918,107630.0,107620.0,0.31704645]
[1762180631714,0.012,107630.0,107620.0,0.60921529]
[1762180632018,0.012,107630.0,107620.0,0.74421618]
[1762180632631,0.012,107630.0,107620.0,0.91012645]
[1762180632916,0.008,107630.0,107620.0,0.91012645]
[1762180633218,0.008,107630.0,107620.0,1.23612645]
[1762180633607,1e-07,107630.0,107620.0,1.23612645]
[1762180634411,1e-07,107630.0,107620.0,0.27727086]
[1762180634610,0.3608001,107630.0,107620.0,0.57580714]
[1762180634816,0.3608001,107630.0,107620.0,0.53035714]
[1762180635019,1e-07,107630.0,107620.0,0.53035714]
[1762180635522,1e-07,107630.0,107620.0,0.82468556]
[1762180635724,0.0442,107640.0,107630.0,0.1383762]
[1762180636015,0.54300089,107650.0,107640.0,0.05862]
[1762180636224,0.54300089,107650.0,107640.0,0.16832836]
[1762180636417,0.54300089,107650.0,107640.0,0.2479357]
[1762180636622,0.0472,107650.0,107640.0,0.2479357]
[1762180636826,0.0472,107650.0,107640.0,0.1550182]
[1762180637118,0.54300089,107650.0,107640.0,0.1550182]
[1762180637520,0.54300089,107650.0,107640.0,0.0963982]
[1762180637921,0.54300089,107650.0,107640.0,0.02996086]
[1762180638425,0.54300089,107650.0,107640.0,0.05260086]
[1762180638623,0.54300089,107650.0,107640.0,0.08858086]
[1762180638826,0.54300089,107650.0,107640.0,0.1550182]
[1762180639130,0.67800178,107650.0,107640.0,0.02996086]
[1762180639330,0.67900178,107650.0,107640.0,0.07980922]
[1762180639529,0.67900178,107650.0,107640.0,0.02996086]
[1762180640032,0.54800089,107650.0,107640.0,0.05260086]
[1762180640234,0.87296089,107650.0,107640.0,0.08858086]
[1762180640530,0.55000089,107650.0,107640.0,0.08858086]
[1762180640730,0.55000089,107650.0,107640.0,0.07541086]
[1762180640926,0.54700089,107650.0,107640.0,0.07541086]
[1762180641234,0.55100089,107650.0,107640.0,0.2479358]
[1762180641921,0.55100089,107650.0,107640.0,0.02996086]
[1762180642220,0.77891068,107650.0,107640.0,0.02996086]
[1762180642726,0.63990979,107650.0,107640.0,0.02996086]
[1762180642921,0.78691068,107650.0,107640.0,6e-08]
[1762180643223,0.0442,107630.0,107620.0,0.39251734]
[1762180643529,0.90080089,107630.0,107620.0,0.39251734]
[1762180643726,0.90080089,107630.0,107620.0,0.15937234]
[1762180643928,0.90080089,107630.0,107620.0,0.06643734]
[1762180644129,0.7658,107630.0,107620.0,0.21799234]
[1762180644329,0.405,107640.0,107630.0,0.1383764]
[1762180644519,0.0442,107640.0,107630.0,0.20492666]
[1762180644815,0.0442,107640.0,107630.0,0.1383764]
[1762180645021,0.0442,107640.0,107630.0,0.4991764]
[1762180645222,0.0472,107650.0,107640.0,0.151538]
[1762180645420,0.003,107650.0,107640.0,0.838378]
[1762180645619,0.003,107650.0,107640.0,1.070618]
[1762180645928,0.0442,107670.0,107660.0,0.1515203]
[1762180646124,0.0442,107670.0,107660.0,0.8385203]
[1762180646532,2.07652223,107690.0,107670.0,0.1383418]
[1762180646733,0.36986193,107690.0,107680.0,0.08020378]
[1762180646923,0.3608,107690.0,107680.0,0.21853698]
[1762180647232,0.3608,107700.0,107690.0,0.1383246]
[1762180647641,0.57352223,107710.0,107690.0,0.1383241]
[1762180647832,1.8608,107700.0,107690.0,0.11191116]
[1762180648035,1.8608,107700.0,107690.0,0.06646116]
[1762180648333,2.41924,107700.0,107690.0,0.002]
[1762180648725,2.41924,107700.0,107680.0,0.06646116]
[1762180648933,0.5644603,107690.0,107680.0,0.06646116]
[1762180649133,0.5644603,107690.0,107680.0,0.15934456]
[1762180649431,0.5644603,107690.0,107680.0,0.0137]
[1762180649832,0.5644603,107690.0,107680.0,0.1065835]
[1762180650026,1.8608,107700.0,107690.0,0.0928748]
[1762180650222,1.8608,107700.0,107690.0,0.1159948]
[1762180650423,1.5,107700.0,107690.0,0.1383248]
[1762180650623,1.5,107700.0,107690.0,0.58208249]
[1762180650834,0.68716,107720.0,107710.0,0.0928573]
[1762180651028,0.3608,107720.0,107710.0,0.1159773]
[1762180651230,0.4536487,107720.0,107710.0,0.1383073]
[1762180651426,0.4536487,107720.0,107710.0,0.04545]
[1762180651621,0.4536487,107720.0,107710.0,0.02312]
[1762180651827,1.5928573,107710.0,107700.0,0.46846769]
[1762180652034,0.0928573,107710.0,107700.0,0.56133369]
[1762180652427,0.0928573,107710.0,107700.0,0.92213369]
[1762180652732,1.51,107720.0,107710.0,0.1383073]
[1762180652937,1.51,107720.0,107710.0,0.58207145]
[1762180653126,1.51,107720.0,107710.0,0.4991073]
[1762180653328,0.01,107720.0,107710.0,0.4991073]
[1762180653526,0.1028488,107720.0,107710.0,0.40625]
[1762180653830,0.0928488,107720.0,107710.0,0.58202717]
[1762180654027,0.002,107720.0,107710.0,0.58202717]
[1762180654735,0.003,107730.0,107720.0,0.1519989]
[1762180655040,0.003,107730.0,107720.0,0.87184101]
[1762180655626,0.003,107730.0,107720.0,0.87184111]
[1762180655831,0.0958404,107730.0,107720.0,0.77899211]
[1762180656024,0.0958404,107730.0,107720.0,0.41819211]
[1762180656534,0.0958407,107730.0,107720.0,0.87184111]
[1762180656734,0.003,107730.0,107720.0,0.95461718]
[1762180656931,0.003,107730.0,107720.0,0.87184111]
[1762180657135,0.008,107730.0,107720.0,0.87284111]
[1762180657539,0.008,107730.0,107720.0,1.10492111]
[1762180657735,1.9536147,107760.0,107750.0,0.04545]
[1762180657938,1.9536147,107760.0,107750.0,0.16101312]
[1762180658129,1.9536147,107760.0,107750.0,0.16094469]
[1762180658530,1.9536147,107760.0,107750.0,0.13861469]
[1762180658731,1.9536147,107760.0,107750.0,0.0989667]
[1762180660140,1.9536147,107760.0,107750.0,0.0999667]
[1762180660447,1.9536147,107760.0,107750.0,0.03384211]
[1762180661144,1.9536147,107760.0,107750.0,0.09993705]
[1762180661438,2.1856147,107760.0,107750.0,0.09993705]
[1762180661635,2.1856147,107760.0,107750.0,5e-08]
[1762180661836,0.00286,107740.0,107730.0,0.45438258]
[1762180662140,0.36366,107740.0,107730.0,0.45438258]
[1762180662340,0.36366,107740.0,107730.0,0.37173]
[1762180663135,0.4564922,107740.0,107730.0,0.37873]
[1762180663336,0.4564922,107740.0,107730.0,0.46238258]
[1762180663537,0.4564922,107740.0,107730.0,0.41693258]
[1762180663939,0.4564922,107740.0,107730.0,0.33428]
[1762180664641,0.4564922,107740.0,107730.0,0.008]
[1762180664948,0.0956922,107740.0,107730.0,0.1453208]
[1762180665136,0.0928322,107740.0,107730.0,0.55409338]
[1762180665335,0.0928322,107740.0,107730.0,0.54709338]
[1762180665545,0.0938322,107740.0,107730.0,0.54709338]
[1762180665746,0.04366803,107740.0,107730.0,0.54709338]
[1762180665942,0.04652803,107740.0,107730.0,0.3716]
[1762180666142,0.04652803,107740.0,107730.0,0.4644405]
[1762180666444,0.001,107740.0,107730.0,0.4644405]
[1762180666646,0.00386,107740.0,107730.0,0.7324]
[1762180666842,0.00386,107740.0,107730.0,0.8252405]
[1762180667049,0.00386,107740.0,107730.0,0.7324]
[1762180667346,0.36466,107740.0,107730.0,0.02412]
[1762180667650,0.36466,107740.0,107730.0,0.04548]
[1762180668345,0.36466,107740.0,107730.0,0.09505381]
[1762180668648,0.92278,107740.0,107730.0,0.05057381]
[1762180669840,0.92278,107740.0,107730.0,0.07866232]
[1762180670044,0.00286,107710.0,107700.0,0.02136]
[1762180670346,0.5673203,107710.0,107700.0,0.05589]
[1762180670939,0.5673203,107710.0,107700.0,0.04275]
[1762180671544,0.5673203,107710.0,107700.0,0.10896538]
[1762180671945,0.5673203,107710.0,107700.0,0.11396538]
[1762180672344,0.36366,107710.0,107700.0,0.21997208]
[1762180672850,0.00286,107710.0,107700.0,0.5145567]
[1762180673050,0.02278,107720.0,107710.0,0.1356031]
[1762180673248,0.38358,107730.0,107720.0,0.1142393]
[1762180673445,0.38358,107730.0,107720.0,0.1487393]
[1762180673446,0.40565,107730.0,107720.0,0.1487393]
[1762180673755,0.40565,107730.0,107720.0,0.16730415]
[1762180674149,0.42323452,107730.0,107720.0,0.08465157]
[1762180674542,0.42323452,107730.0,107720.0,0.08565157]
[1762180674742,0.42323452,107730.0,107720.0,0.16864379]
[1762180675153,0.42323452,107730.0,107720.0,0.08565157]
[1762180675350,0.42323452,107730.0,107720.0,0.20198569]
[1762180675743,0.42323452,107730.0,107720.0,0.08765157]
[1762180675938,0.42323452,107730.0,107720.0,0.03176157]
[1762180676455,0.8245307,107730.0,107720.0,0.03176157]
[1762180676646,0.8245307,107730.0,107720.0,0.11484563]
[1762180676847,0.8245307,107730.0,107720.0,0.03176157]
[1762180677354,0.8245307,107730.0,107720.0,0.09830083]
[1762180677658,0.8245307,107730.0,107720.0,0.03176157]
[1762180678649,0.8245307,107730.0,107720.0,0.09832139]
[1762180678957,1.0566107,107730.0,107720.0,9e-08]
[1762180679444,0.05241,107720.0,107710.0,0.08308406]
[1762180679644,0.04485,107710.0,107700.0,0.13897406]
[1762180679841,0.04485,107710.0,107700.0,0.23184046]
[1762180680058,0.04485,107710.0,107700.0,0.59264046]
[1762180680256,0.40565,107720.0,107710.0,0.1356078]
[1762180680458,0.40565,107720.0,107710.0,0.04275]
[1762180680646,0.3554729,107720.0,107710.0,0.04275]
[1762180680841,0.3554729,107720.0,107710.0,0.12583406]
[1762180681248,0.5666932,107720.0,107710.0,0.08308406]
[1762180681551,0.04485,107700.0,107690.0,0.56820818]
[1762180681746,0.2485103,107700.0,107690.0,0.12583406]
[1762180682055,0.6093103,107700.0,107690.0,0.12583406]
[1762180682446,0.6093103,107700.0,107690.0,0.04275]
[1762180682647,0.6093103,107700.0,107690.0,0.02139]
[1762180683246,0.6093103,107700.0,107690.0,0.04275]
[1762180683450,0.04485,107700.0,107690.0,0.04275]
[1762180683753,0.41485741,107700.0,107690.0,0.12583406]
[1762180683953,0.42554741,107700.0,107690.0,0.08308406]
[1762180684257,0.04485,107680.0,107670.0,0.48663406]
[1762180684446,0.04485,107680.0,107670.0,0.57952626]
[1762180684646,0.73197,107690.0,107680.0,0.05589]
[1762180684842,0.72997,107690.0,107680.0,0.05589]
[1762180685243,0.72697,107690.0,107680.0,0.05589]
[1762180685453,0.40565,107690.0,107680.0,0.05589]
[1762180686060,0.40665,107690.0,107680.0,0.008]
[1762180686357,0.04585,107690.0,107680.0,0.06389]
[1762180686557,0.002,107690.0,107680.0,0.8438536]
[1762180686745,0.001,107690.0,107680.0,0.8358536]
[1762180686945,0.3608,107710.0,107700.0,0.1487566]
[1762180686946,0.04485,107710.0,107700.0,0.1487566]
[1762180687151,0.115638,107710.0,107700.0,0.8360766]
[1762180687359,0.02278,107710.0,107700.0,0.91916066]
[1762180687560,0.4984946,107730.0,107720.0,0.1487394]
[1762180687756,0.1376946,107730.0,107720.0,0.38245]
[1762180687951,0.1376946,107730.0,107720.0,0.836099]
[1762180688263,0.1376863,107740.0,107730.0,0.1355904]
[1762180688554,0.4566091,107770.0,107730.0,0.1355904]
[1762180688555,0.04485,107750.0,107740.0,0.1487217]
[1762180688762,0.1406622,107770.0,107760.0,0.05589]
[1762180689150,0.1406622,107770.0,107760.0,0.1487047]
[1762180689355,0.04785,107770.0,107760.0,0.54209716]
[1762180689550,0.003,107770.0,107760.0,0.8363847]
[1762180689763,0.003,107770.0,107760.0,0.91946876]
[1762180690154,0.003,107770.0,107760.0,1.15146876]
[1762180690445,0.39092051,107790.0,107780.0,0.05589]